fUST/lending_fUST_20251001
["ID","MTS","AMOUNT","RATE_DAILY","PERIOD"]
[388653688,1759300269235,-509.24,0.00021915,2]
[388653689,1759300269245,-500.0,0.00021915,2]
[388653690,1759300269254,-600.5,0.00021915,2]
[388653691,1759300269263,-500.0,0.00021915,2]
[388653692,1759300269272,-616.41,0.00021915,2]
[388653693,1759300269281,-1174.06,0.00021915,2]
[388653694,1759300269291,-775.36,0.00021915,2]
[388653695,1759300269300,-500.0,0.00021915,2]
[388653696,1759300269309,-900.61,0.00021915,2]
[388653697,1759300269319,-767.43,0.00021915,2]
[388653698,1759300269328,-500.0,0.00021915,2]
[388653699,1759300269338,-775.18,0.00021915,2]
[388653700,1759300269348,-558.56,0.00021915,2]
[388653701,1759300269357,-709.03,0.00021915,2]
[388653702,1759300269366,-609.6,0.00021915,2]
[388653703,1759300269376,-556.02,0.00021915,2]
[388653704,1759300269385,-1000.92,0.00021915,2]
[388653705,1759300269394,-814.04,0.00021915,2]
[388653706,1759300269403,-1230.23,0.00021915,2]
[388653707,1759300269413,-1305.99,0.00021915,2]
[388653708,1759300269422,-694.39,0.00021915,2]
[388653709,1759300269432,-555.89,0.00021915,2]
[388653710,1759300269441,-512.35,0.00021915,2]
[388653711,1759300269450,-500.0,0.00021915,2]
[388653712,1759300269459,-848.29,0.00021915,2]
[388653713,1759300269469,-2483.05,0.00021915,2]
[388653714,1759300269478,-500.0,0.00021915,2]
[388653715,1759300269488,-500.0,0.00021915,2]
[388653716,1759300269497,-1323.84,0.00021915,2]
[388653717,1759300269507,-1221.22,0.00021915,2]
[388653718,1759300269517,-1683.66,0.00021915,2]
[388653719,1759300269526,-400.06368297,0.00021915,2]
[388653720,1759300269536,-893.56,0.00021915,2]
[388653721,1759300269654,-1673.81,0.00021915,2]
[388653722,1759300269664,-1460.82,0.00021915,2]
[388653723,1759300269675,-847.13,0.00021915,2]
[388653724,1759300269685,-500.0,0.00021915,2]
[388653725,1759300269694,-500.0,0.00021915,2]
[388653726,1759300269704,-500.0,0.00021915,2]
[388653727,1759300269713,-2814.77,0.00021915,2]
[388653728,1759300269722,-500.0,0.00021915,2]
[388653729,1759300269735,-500.0,0.00021915,2]
[388653730,1759300269745,-816.61,0.00021915,2]
[388653731,1759300269755,-649.89,0.00021915,2]
[388653732,1759300269764,-500.0,0.00021915,2]
[388653733,1759300269774,-1006.68,0.00021915,2]
[388653734,1759300269784,-439.0,0.00021916,2]
[388653735,1759300269794,-500.0,0.00021916,2]
[388653736,1759300269806,-3416.19,0.00021916,2]
[388653737,1759300269815,-943.13,0.00021916,2]
[388653738,1759300269824,-546.02,0.00021916,2]
[388653739,1759300269834,-500.0,0.00021916,2]
[388653740,1759300269844,-1377.23,0.00021916,2]
[388653741,1759300269855,-500.0,0.00021916,2]
[388653742,1759300269864,-500.0,0.00021916,2]
[388653743,1759300269874,-659.67,0.00021916,2]
[388653744,1759300269883,-830.66,0.00021916,2]
[388653745,1759300269893,-764.52,0.00021916,2]
[388653746,1759300269903,-500.0,0.00021916,2]
[388653747,1759300269913,-500.0,0.00021916,2]
[388653748,1759300269923,-501.81,0.00021916,2]
[388653749,1759300269933,-500.0,0.00021916,2]
[388653750,1759300269942,-736.74,0.00021916,2]
[388653751,1759300269951,-500.0,0.00021916,2]
[388653752,1759300269961,-2706.95,0.00021916,2]
[388653753,1759300269971,-500.0,0.00021916,2]
[388653754,1759300269980,-598.42,0.00021916,2]
[388653755,1759300269989,-1415.76,0.00021916,2]
[388653756,1759300269999,-613.83,0.00021916,2]
[388653757,1759300270009,-632.86,0.00021916,2]
[388653758,1759300270018,-1640.0,0.00021916,2]
[388653759,1759300270027,-500.0,0.00021917,2]
[388653760,1759300270036,-713.88,0.00021917,2]
[388653761,1759300270046,-500.0,0.00021917,2]
[388653762,1759300270055,-553.53,0.00021917,2]
[388653763,1759300270064,-515.74,0.00021917,2]
[388653764,1759300270073,-500.0,0.00021917,2]
[388653765,1759300270083,-1250.0,0.00021917,2]
[388653766,1759300270093,-500.0,0.00021917,2]
[388653767,1759300270103,-513.86,0.00021917,2]
[388653768,1759300270113,-500.0,0.00021917,2]
[388653769,1759300270123,-500.0,0.00021917,2]
[388653770,1759300270132,-500.0,0.00021917,2]
[388653771,1759300270141,-561.73,0.00021917,2]
[388653772,1759300270150,-500.0,0.00021917,2]
[388653773,1759300270160,-500.0,0.00021917,2]
[388653774,1759300270170,-500.0,0.00021917,2]
[388653775,1759300270179,-506.9627757,0.00021917,2]
[388653776,1759300270188,-500.0,0.00021917,2]
[388653777,1759300270198,-500.0,0.00021917,2]
[388653778,1759300270207,-500.0,0.00021917,2]
[388653779,1759300270217,-524.18,0.00021917,2]
[388653780,1759300270227,-500.0,0.00021917,2]
[388653781,1759300270236,-500.0,0.00021917,2]
[388653782,1759300270246,-500.0,0.00021917,2]
[388653783,1759300270255,-500.0,0.00021917,2]
[388653784,1759300270265,-500.0,0.00021917,2]
[388653785,1759300270275,-500.0,0.00021917,2]
[388653786,1759300270285,-500.0,0.00021917,2]
[388653787,1759300270294,-500.0,0.00021917,2]
[388653788,1759300270304,-500.0,0.00021917,2]
[388653789,1759300270313,-500.0,0.00021917,2]
[388653790,1759300270323,-500.0,0.00021917,2]
[388653791,1759300270333,-500.0,0.00021917,2]
[388653792,1759300270343,-646.25,0.00021917,2]
[388653793,1759300270353,-539.33,0.00021917,2]
[388653794,1759300270363,-657.79,0.00021917,2]
[388653795,1759300270373,-500.0,0.00021917,2]
[388653796,1759300270382,-1606.71,0.00021917,2]
[388653797,1759300270392,-686.68,0.00021917,2]
[388653798,1759300270401,-2286.35,0.00021917,2]
[388653799,1759300270412,-1437.67,0.00021917,2]
[388653800,1759300270422,-500.0,0.00021917,2]
[388653801,1759300270431,-1047.18,0.00021917,2]
[388653802,1759300270441,-381.9099482,0.00021917,2]
[388653803,1759300270451,-1014.26,0.00021917,2]
[388653804,1759300270460,-500.0,0.00021917,2]
[388653805,1759300270470,-500.0,0.00021917,2]
[388653806,1759300270480,-2286.01,0.00021917,2]
[388653807,1759300270489,-2031.62,0.00021917,2]
[388653808,1759300270499,-500.0,0.00021917,2]
[388653809,1759300270508,-500.0,0.00021917,2]
[388653810,1759300270517,-162.366042,0.00021918,2]
[388653811,1759300270527,-162.366042,0.00021918,2]
[388653812,1759300270536,-162.366042,0.00021918,2]
[388653813,1759300270545,-162.366042,0.00021918,2]
[388653814,1759300270555,-162.366042,0.00021918,2]
[388653815,1759300270564,-162.366042,0.00021918,2]
[388653816,1759300270573,-162.366042,0.00021918,2]
[388653817,1759300270583,-162.366042,0.00021918,2]
[388653818,1759300270593,-162.366042,0.00021918,2]
[388653819,1759300270602,-162.366042,0.00021918,2]
[388653820,1759300270612,-162.366042,0.00021918,2]
[388653821,1759300270621,-162.366042,0.00021918,2]
[388653822,1759300270630,-162.366042,0.00021918,2]
[388653823,1759300270640,-162.366042,0.00021918,2]
[388653824,1759300270649,-162.366042,0.00021918,2]
[388653825,1759300270659,-162.366042,0.00021918,2]
[388653826,1759300270668,-162.366042,0.00021918,2]
[388653827,1759300270677,-162.366042,0.00021918,2]
[388653828,1759300270687,-162.366042,0.00021918,2]
[388653829,1759300270696,-162.366032,0.00021918,2]
[388653830,1759300270705,-150.0,0.00021918,2]
[388653831,1759300270714,-400.0,0.00021918,2]
[388653832,1759300270723,-249.0,0.00021953,2]
[388653833,1759300270737,-152.73885071,0.00022,2]
[388653834,1759300270747,-168.0,0.00022073,2]
[388653835,1759300270757,-584.25229651,0.00022116,2]
[388653836,1759300270767,-360.0,0.00022119,2]
[388653837,1759300270778,-500.0,0.0002212,2]
[388653838,1759300270787,-524.88384032,0.0002212,3]
[388653839,1759300270797,-500.0,0.0002212,2]
[388653840,1759300270809,-500.0,0.0002212,2]
[388653841,1759300270818,-500.0,0.0002212,2]
[388653842,1759300270828,-500.0,0.0002212,2]
[388653843,1759300270844,-591.84,0.0002212,2]
[388653844,1759300270859,-813.58,0.0002212,2]
[388653845,1759300270872,-752.21,0.0002212,2]
[388653846,1759300270885,-500.0,0.0002212,2]
[388653847,1759300270899,-725.57,0.0002212,2]
[388653848,1759300270914,-601.52,0.0002212,2]
[388653849,1759300270930,-500.0,0.0002212,2]
[388653850,1759300270945,-500.0,0.0002212,2]
[388653851,1759300270959,-500.0,0.0002212,2]
[388653852,1759300270972,-500.0,0.0002212,2]
[388653853,1759300270985,-500.0,0.0002212,2]
[388653854,1759300270998,-500.0,0.0002212,2]
[388653855,1759300271012,-500.0,0.0002212,2]
[388653856,1759300271027,-500.0,0.0002212,2]
[388653857,1759300271038,-500.0,0.0002212,2]
[388653858,1759300271050,-500.0,0.0002212,2]
[388653859,1759300271064,-500.0,0.0002212,2]
[388653860,1759300271078,-500.0,0.0002212,2]
[388653861,1759300271091,-500.0,0.0002212,2]
[388653862,1759300271106,-500.0,0.0002212,2]
[388653863,1759300271122,-500.0,0.0002212,2]
[388653864,1759300271132,-500.0,0.0002212,2]
[388653865,1759300271143,-500.0,0.0002212,2]
[388653866,1759300271156,-1778.41,0.0002212,2]
[388653867,1759300271171,-500.0,0.0002212,2]
[388653868,1759300271183,-225.69422441,0.0002212,2]
[388653869,1759300271195,-500.0,0.0002212,2]
[388653870,1759300271207,-500.0,0.0002212,2]
[388653871,1759300271221,-500.0,0.0002212,2]
[388653872,1759300271232,-500.0,0.0002212,2]
[388653873,1759300271244,-600.2,0.0002212,2]
[388653874,1759300271256,-679.62,0.0002212,2]
[388653875,1759300271267,-500.0,0.0002212,2]
[388653876,1759300271279,-733.7,0.0002212,2]
[388653877,1759300271291,-500.0,0.0002212,2]
[388653878,1759300271302,-500.0,0.0002212,2]
[388653879,1759300271313,-800.55,0.0002212,2]
[388653880,1759300271325,-2172.05,0.0002212,2]
[388653881,1759300271336,-500.0,0.0002212,2]
[388653882,1759300271348,-500.0,0.0002212,2]
[388653883,1759300271360,-500.0,0.0002212,2]
[388653884,1759300271371,-770.05,0.0002212,2]
[388653885,1759300271382,-500.0,0.0002212,2]
[388653886,1759300271394,-500.0,0.0002212,2]
[388653887,1759300271405,-500.0,0.0002212,2]
[388653888,1759300271417,-500.0,0.0002212,2]
[388653889,1759300271428,-500.0,0.0002212,2]
[388653890,1759300271439,-527.39,0.0002212,2]
[388653891,1759300271450,-610.31,0.0002212,2]
[388653892,1759300271460,-578.69,0.0002212,2]
[388653893,1759300271471,-500.0,0.0002212,2]
[388653894,1759300271482,-500.0,0.0002212,2]
[388653895,1759300271493,-500.0,0.0002212,2]
[388653896,1759300271504,-500.0,0.0002212,2]
[388653897,1759300271516,-500.65,0.0002212,2]
[388653898,1759300271527,-996.5,0.0002212,2]
[388653899,1759300271538,-168.0,0.00022155,2]
[388653900,1759300271549,-759.99166899,0.00022164,2]
[388653901,1759300271560,-2500.0,0.00022164,2]
[388653902,1759300271572,-151.0,0.00022179,2]
[388653903,1759300271583,-168.0,0.00022181,2]
[388653904,1759300271595,-500.0,0.00022185,2]
[388653905,1759300271607,-500.0,0.00022185,2]
[388653906,1759300271618,-500.0,0.00022187,2]
[388653907,1759300271629,-500.0,0.00022187,2]
[388653908,1759300271641,-633.83,0.00022187,2]
[388653909,1759300271652,-500.0,0.00022187,2]
[388653910,1759300271665,-1834.41,0.00022187,2]
[388653911,1759300271676,-2584.74,0.00022187,2]
[388653912,1759300271687,-500.0,0.00022187,2]
[388653913,1759300271705,-3037.8,0.00022187,2]
[388653914,1759300271716,-1577.62,0.00022187,2]
[388653915,1759300271727,-1290.34,0.00022187,2]
[388653916,1759300271741,-990.8,0.00022187,2]
[388653917,1759300271753,-606.82,0.00022187,2]
[388653918,1759300271765,-624.91,0.00022187,2]
[388653919,1759300271776,-2838.9,0.00022187,2]
[388653920,1759300271788,-500.0,0.00022187,2]
[388653921,1759300271798,-500.0,0.00022187,2]
[388653922,1759300271809,-976.71,0.00022188,2]
[388653923,1759300271823,-500.0,0.00022188,2]
[388653924,1759300271834,-500.0,0.00022188,2]
[388653925,1759300271845,-500.0,0.00022188,2]
[388653926,1759300271862,-532.24,0.00022188,2]
[388653927,1759300271874,-696.54,0.00022188,2]
[388653928,1759300271885,-599.84,0.00022188,2]
[388653929,1759300271896,-1595.27,0.00022188,2]
[388653930,1759300271908,-1044.96,0.00022188,2]
[388653931,1759300271919,-816.6,0.00022188,2]
[388653932,1759300271930,-500.0,0.00022188,2]
[388653933,1759300271941,-500.0,0.00022188,2]
[388653934,1759300271952,-500.0,0.00022188,2]
[388653935,1759300271964,-500.0,0.00022188,2]
[388653936,1759300271975,-2133.99,0.00022188,2]
[388653937,1759300271986,-790.26,0.00022188,2]
[388653938,1759300271997,-500.0,0.00022188,2]
[388653939,1759300272008,-1073.26,0.00022188,2]
[388653940,1759300272020,-2985.05,0.00022188,2]
[388653941,1759300272032,-1203.65,0.00022188,2]
[388653942,1759300272043,-500.0,0.00022188,2]
[388653943,1759300272054,-1345.4,0.00022188,2]
[388653944,1759300272065,-1844.27,0.00022188,2]
[388653945,1759300272076,-744.0,0.00022188,2]
[388653946,1759300272087,-500.0,0.00022188,2]
[388653947,1759300272098,-2722.47,0.00022188,2]
[388653948,1759300272109,-704.37,0.00022188,2]
[388653949,1759300272120,-643.28,0.00022188,2]
[388653950,1759300272131,-2310.74,0.00022188,2]
[388653951,1759300272142,-477.65,0.00022188,2]
[388653952,1759300272152,-588.85,0.00022188,2]
[388653953,1759300272163,-591.97,0.00022188,2]
[388653954,1759300272175,-738.55,0.00022188,2]
[388653955,1759300272186,-1055.04,0.00022188,2]
[388653956,1759300272197,-860.04,0.00022188,2]
[388653957,1759300272208,-500.0,0.00022188,2]
[388653958,1759300272219,-500.0,0.00022188,2]
[388653959,1759300272230,-2129.67,0.00022188,2]
[388653960,1759300272241,-594.42,0.00022188,2]
[388653961,1759300272252,-500.0,0.00022188,2]
[388653962,1759300272263,-1943.54,0.00022188,2]
[388653963,1759300272274,-3021.33,0.00022188,2]
[388653964,1759300272285,-542.34,0.00022188,2]
[388653965,1759300272487,-500.0,0.00022189,2]
[388653966,1759300272501,-500.0,0.00022189,2]
[388653967,1759300272511,-1326.54,0.00022189,2]
[388653968,1759300272520,-500.0,0.00022189,2]
[388653969,1759300272530,-500.0,0.00022189,2]
[388653970,1759300272539,-1228.09,0.00022189,2]
[388653971,1759300272548,-523.58,0.00022189,2]
[388653972,1759300272558,-503.71,0.00022189,2]
[388653973,1759300272567,-655.06,0.00022189,2]
[388653974,1759300272577,-500.0,0.00022189,2]
[388653975,1759300272587,-500.0,0.00022189,2]
[388653976,1759300272596,-1189.11,0.00022189,2]
[388653977,1759300272605,-1363.71,0.00022189,2]
[388653978,1759300272614,-509.24,0.00022189,2]
[388653979,1759300272623,-500.0,0.00022189,2]
[388653980,1759300272632,-600.5,0.00022189,2]
[388653981,1759300272641,-500.0,0.00022189,2]
[388653982,1759300272650,-616.41,0.00022189,2]
[388653983,1759300272659,-1174.06,0.00022189,2]
[388653984,1759300272670,-775.36,0.00022189,2]
[388653985,1759300272679,-500.0,0.00022189,2]
[388653986,1759300272688,-900.61,0.00022189,2]
[388653987,1759300272697,-767.43,0.00022189,2]
[388653988,1759300272706,-500.0,0.00022189,2]
[388653989,1759300272715,-775.18,0.00022189,2]
[388653990,1759300272723,-558.56,0.00022189,2]
[388653991,1759300272734,-709.03,0.00022189,2]
[388653992,1759300272746,-609.6,0.00022189,2]
[388653993,1759300272755,-556.02,0.00022189,2]
[388653994,1759300272765,-1000.92,0.00022189,2]
[388653995,1759300272776,-814.04,0.00022189,2]
[388653996,1759300272786,-1230.23,0.00022189,2]
[388653997,1759300272799,-1305.99,0.00022189,2]
[388653998,1759300272809,-694.39,0.00022189,2]
[388653999,1759300272819,-555.89,0.00022189,2]
[388654000,1759300272828,-512.35,0.00022189,2]
[388654001,1759300272838,-500.0,0.00022189,2]
[388654002,1759300272849,-848.29,0.00022189,2]
[388654003,1759300272858,-2483.05,0.00022189,2]
[388654004,1759300272868,-500.0,0.00022189,2]
[388654005,1759300272878,-500.0,0.00022189,2]
[388654006,1759300272887,-1323.84,0.00022189,2]
[388654007,1759300272896,-1221.22,0.00022189,2]
[388654008,1759300272906,-1683.66,0.00022189,2]
[388654009,1759300272915,-893.56,0.00022189,2]
[388654010,1759300272925,-1673.81,0.00022189,2]
[388654011,1759300272935,-1460.82,0.00022189,2]
[388654012,1759300272944,-847.13,0.00022189,2]
[388654013,1759300272953,-500.0,0.00022189,2]
[388654014,1759300272962,-500.0,0.00022189,2]
[388654015,1759300272972,-500.0,0.00022189,2]
[388654016,1759300272982,-2814.77,0.00022189,2]
[388654017,1759300272991,-500.0,0.00022189,2]
[388654018,1759300273000,-500.0,0.00022189,2]
[388654019,1759300273009,-679.91349217,0.00022189,2]
[388654020,1759300273199,-136.69650783,0.00022189,2]
[388654021,1759300273208,-649.89,0.00022189,2]
[388654022,1759300273218,-500.0,0.00022189,2]
[388654023,1759300273228,-1006.68,0.00022189,2]
[388654024,1759300273237,-439.0,0.0002219,2]
[388654025,1759300273246,-500.0,0.0002219,2]
[388654026,1759300273255,-3416.19,0.0002219,2]
[388654027,1759300273265,-943.13,0.0002219,2]
[388654028,1759300273274,-546.02,0.0002219,2]
[388654029,1759300273283,-500.0,0.0002219,2]
[388654030,1759300273293,-1377.23,0.0002219,2]
[388654031,1759300273302,-500.0,0.0002219,2]
[388654032,1759300273311,-500.0,0.0002219,2]
[388654033,1759300273319,-659.67,0.0002219,2]
[388654034,1759300273330,-830.66,0.0002219,2]
[388654035,1759300273339,-764.52,0.0002219,2]
[388654036,1759300273348,-500.0,0.0002219,2]
[388654037,1759300273357,-500.0,0.0002219,2]
[388654038,1759300273366,-384.83911305,0.0002219,2]
[388654039,1759300273378,-116.97088695,0.0002219,2]
[388654040,1759300273386,-500.0,0.0002219,2]
[388654041,1759300273395,-107.66591924,0.0002219,2]
[388654042,1759300273406,-393.04281597,0.0002219,2]
[388654043,1759300273451,-236.03126479,0.0002219,2]
[388654044,1759300273460,-500.0,0.0002219,2]
[388654045,1759300273469,-1151.40441148,0.0002219,2]
[388654055,1759300368098,229.07,0.00022175,120]
[388654081,1759300722457,1000.0,0.00028767,120]
[388654082,1759300733050,194.4822348,0.00018914,2]
[388654083,1759301104333,1000.0,0.00028767,120]
[388654092,1759301289568,417.15472785,0.00025,30]
[388654112,1759301431982,-589.19249375,0.00019792,2]
[388654113,1759301431992,-1200.0,0.00019887,2]
[388654114,1759301432002,-300.0,0.00019887,2]
[388654115,1759301432012,-1200.0,0.00019887,2]
[388654116,1759301432021,-9984.93023488,0.00019888,2]
[388654117,1759301432031,-500.0,0.00019888,2]
[388654118,1759301432040,-480.0,0.00019888,2]
[388654119,1759301432049,-500.0,0.00019888,2]
[388654120,1759301432058,-500.0,0.00019888,2]
[388654121,1759301432068,-217.33291042,0.00019888,2]
[388654129,1759301437921,-162.3734825,0.00019887,2]
[388654130,1759301437931,-110.43918965,0.00019887,2]
[388654152,1759301445884,-434.76293903,0.00019887,2]
[388654153,1759301445894,-200.0,0.00019887,2]
[388654154,1759301445904,-282.66708958,0.00019888,2]
[388654155,1759301445913,-500.0,0.00019888,2]
[388654156,1759301445922,-427.75547731,0.00019888,2]
[388654157,1759301445932,-480.0,0.00019888,2]
[388654158,1759301445942,-500.0,0.00019888,2]
[388654159,1759301445952,-500.0,0.00019888,2]
[388654160,1759301445962,-760.23,0.00019888,2]
[388654161,1759301445971,-802.44,0.00019888,2]
[388654162,1759301445981,-500.0,0.00019888,2]
[388654163,1759301445993,-500.0,0.00019888,2]
[388654164,1759301446004,-500.0,0.00019888,2]
[388654165,1759301446015,-500.0,0.00019888,2]
[388654166,1759301446025,-500.0,0.00019888,2]
[388654167,1759301446035,-500.0,0.00019888,2]
[388654168,1759301446046,-500.0,0.00019888,2]
[388654169,1759301446057,-896.94,0.00019888,2]
[388654170,1759301446067,-500.0,0.00019888,2]
[388654171,1759301446077,-1229.51,0.00019888,2]
[388654172,1759301446087,-480.0,0.00019888,2]
[388654173,1759301446097,-483.20055278,0.00019888,2]
[388654174,1759301446106,-484.22540957,0.00019888,2]
[388654175,1759301446116,-480.0,0.00019888,2]
[388654176,1759301446126,-480.0,0.00019888,2]
[388654177,1759301446136,-484.55646098,0.00019888,2]
[388654178,1759301446145,-487.09574954,0.00019888,2]
[388654179,1759301446155,-500.0,0.00019888,2]
[388654180,1759301446165,-500.0,0.00019888,2]
[388654181,1759301446176,-486.89764758,0.00019888,2]
[388654182,1759301446186,-482.66451475,0.00019888,2]
[388654183,1759301446195,-486.61980624,0.00019888,2]
[388654184,1759301446205,-1540.49,0.00019888,2]
[388654185,1759301446214,-500.0,0.00019888,2]
[388654186,1759301446223,-500.0,0.00019888,2]
[388654187,1759301446232,-500.0,0.00019888,2]
[388654188,1759301446241,-480.0,0.00019888,2]
[388654189,1759301446251,-421.71773051,0.00019888,2]
[388654202,1759302328081,153.0,9.5e-07,2]
[388654239,1759302638100,-154.55216391,0.00019591,2]
[388654240,1759302638116,-372.45828268,0.00019691,2]
[388654241,1759302638128,-250.56449875,0.00019691,2]
[388654242,1759302638138,-502.17850201,0.00019773,2]
[388654243,1759302638151,-500.0,0.00019773,2]
[388654244,1759302638161,-300.0,0.00019789,2]
[388654245,1759302638171,-1200.0,0.00019789,2]
[388654246,1759302638180,-312.30395764,0.0001979,2]
[388654247,1759302638194,-887.69604236,0.0001979,2]
[388654248,1759302638203,-253.72521027,0.0001979,2]
[388654249,1759302638212,-296.13030179,0.0001979,2]
[388654250,1759302638222,-500.0,0.0001979,2]
[388654251,1759302638231,-500.0,0.0001979,2]
[388654252,1759302638241,-222.26594933,0.0001979,2]
[388654253,1759302638251,-500.0,0.0001979,2]
[388654254,1759302638261,-500.0,0.0001979,2]
[388654255,1759302638270,-500.0,0.0001979,2]
[388654256,1759302638279,-500.0,0.0001979,2]
[388654257,1759302638289,-500.0,0.0001979,2]
[388654258,1759302638299,-500.0,0.0001979,2]
[388654259,1759302638308,-500.0,0.0001979,2]
[388654260,1759302638318,-500.0,0.0001979,2]
[388654261,1759302638327,-470.88114449,0.0001979,2]
[388654262,1759302638337,-500.0,0.0001979,2]
[388654263,1759302638347,-500.0,0.0001979,2]
[388654264,1759302638356,-395.18815987,0.0001979,2]
[388654265,1759302638367,-2278.35,0.0001979,2]
[388654266,1759302638376,-500.0,0.00019791,2]
[388654267,1759302638386,-500.0,0.00019791,2]
[388654268,1759302638397,-583.75853418,0.00019791,2]
[388654269,1759302638407,-500.0,0.00019791,2]
[388654270,1759302638416,-500.0,0.00019791,2]
[388654271,1759302638426,-500.0,0.00019791,2]
[388654272,1759302638435,-2455.39,0.00019791,2]
[388654273,1759302638445,-207.2009166,0.00019791,2]
[388654274,1759302638454,-234.00763348,0.00019791,2]
[388654275,1759302638464,-500.0,0.00019791,2]
[388654276,1759302638474,-1932.47,0.00019791,2]
[388654277,1759302638484,-500.0,0.00019791,2]
[388654278,1759302638494,-1183.21,0.00019791,2]
[388654279,1759302638506,-500.0,0.00019791,2]
[388654280,1759302638515,-500.0,0.00019791,2]
[388654281,1759302638525,-500.0,0.00019791,2]
[388654282,1759302638535,-500.0,0.00019791,2]
[388654283,1759302638544,-500.0,0.00019791,2]
[388654284,1759302638555,-500.0,0.00019791,2]
[388654285,1759302638564,-817.99,0.00019791,2]
[388654286,1759302638574,-1375.8,0.00019791,2]
[388654287,1759302638583,-869.31,0.00019791,2]
[388654288,1759302638593,-1938.56,0.00019791,2]
[388654289,1759302638603,-500.0,0.00019791,2]
[388654290,1759302638613,-971.68,0.00019791,2]
[388654291,1759302638623,-1331.97,0.00019791,2]
[388654292,1759302638636,-394.17728598,0.00019791,2]
[388654293,1759302638646,-500.0,0.00019791,2]
[388654294,1759302638656,-1668.87,0.00019791,2]
[388654295,1759302638666,-967.75,0.00019791,2]
[388654296,1759302638675,-500.0,0.00019791,2]
[388654297,1759302638685,-553.91,0.00019791,2]
[388654298,1759302638694,-743.1,0.00019791,2]
[388654299,1759302638704,-590.21,0.00019791,2]
[388654300,1759302638714,-2129.18,0.00019791,2]
[388654301,1759302638724,-791.28,0.00019791,2]
[388654302,1759302638734,-500.0,0.00019791,2]
[388654303,1759302638744,-500.0,0.00019791,2]
[388654304,1759302638754,-500.0,0.00019791,2]
[388654305,1759302638763,-500.0,0.00019791,2]
[388654306,1759302638773,-500.0,0.00019792,2]
[388654307,1759302638783,-500.0,0.00019792,2]
[388654308,1759302638793,-482.44299236,0.00019792,2]
[388654309,1759302638802,-481.7655025,0.00019792,2]
[388654310,1759302638811,-500.0,0.00019792,2]
[388654311,1759302638821,-500.0,0.00019792,2]
[388654312,1759302638831,-237.78895889,0.00019792,2]
[388654313,1759302638840,-500.0,0.00019792,2]
[388654314,1759302638850,-514.58,0.00019792,2]
[388654315,1759302638860,-500.0,0.00019792,2]
[388654316,1759302638870,-500.0,0.00019792,2]
[388654317,1759302638880,-500.0,0.00019792,2]
[388654318,1759302638890,-530.87716305,0.00019792,2]
[388654319,1759302638899,-500.0,0.00019792,2]
[388654320,1759302638909,-500.0,0.00019792,2]
[388654321,1759302638918,-583.33,0.00019792,2]
[388654322,1759302638928,-500.0,0.00019792,2]
[388654323,1759302638938,-500.0,0.00019792,2]
[388654324,1759302638948,-921.06,0.00019792,2]